[Event "Vienna Chess Open 2019"]
[Site "Vienna"]
[Date "2019.08.19"]
[Round "4.4"]
[White "Hertneck, Gerald"]
[Black "Miedema, David"]
[Result "1/2-1/2"]
[ECO "D43"]
[WhiteElo "2495"]
[BlackElo "2371"]
[Annotator "ChessBase"]
[PlyCount "27"]
[EventDate "2019.08.17"]
[EventType "swiss"]
[EventCountry "AUT"]
[SourceTitle "playchess.com"]
[Source "ChessBase"]
[SourceQuality "1"]
[TimeControl "40/5400+30:1800+30"]

1. d4 {[%emt 0:00:00]} Nf6 {[%emt 0:00:52]} 2. c4 {[%emt 0:00:00]} e6 {[%emt 0:00:06]} 3. Nf3 {[%emt 0:00:00]} d5 {[%emt 0:00:05]} 4. Nc3 {[%emt 0:00:00]} c6 {[%emt 0:01:02]} 5. cxd5 {[%emt 0:01:11]} exd5 {[%emt 0:00:18]} 6. Bg5 {[%emt 0:00:07]} Be7 {[%emt 0:02:01]} 7. Qc2 {[%emt 0:00:25]} g6 {[%emt 0:09:00]} 8. e3 {[%emt 0:00:07]} Bf5 {[%emt 0:00:04]} 9. Bd3 {[%emt 0:00:05]} Bxd3 {[%emt 0:00:28]} 10. Qxd3 {[%emt 0:00:07]} Nbd7 {[%emt 0:02:22]} 11. Bf4 {[%emt 0:01:32]} Nh5 {[%emt 0:01:59]} 12. Bh6 {[%emt 0:00:23]} Bf8 {[%emt 0:00:15]} 13. Bg5 {[%emt 0:00:47]} Be7 {[%emt 0:00:45]} 14. Bh6 {[%emt 0:00:06]} 1/2-1/2

[Event "Vienna Chess Open 2019"]
[Site "Vienna"]
[Date "2019.08.19"]
[Round "4.4"]
[White "Abdumalik, Zhansaya"]
[Black "Mostbauer, Florian"]
[Result "1-0"]
[ECO "B17"]
[WhiteElo "2457"]
[BlackElo "2338"]
[Annotator "ChessBase"]
[PlyCount "63"]
[EventDate "2019.08.17"]
[EventType "swiss"]
[EventCountry "AUT"]
[SourceTitle "playchess.com"]
[Source "ChessBase"]
[SourceQuality "1"]
[TimeControl "40/5400+30:1800+30"]

1. e4 {[%emt 0:00:00]} c6 {[%emt 0:00:00]} 2. d4 {[%emt 0:00:00]} d5 {[%emt 0:00:05]} 3. Nd2 {[%emt 0:00:00]} dxe4 {[%emt 0:00:07]} 4. Nxe4 {[%emt 0:00:00]} Nd7 {[%emt 0:00:12]} 5. Nf3 {[%emt 0:00:02]} Ngf6 {[%emt 0:00:07]} 6. Ng3 {[%emt 0:00:04]} c5 {[%emt 0:00:36]} 7. c3 {[%emt 0:01:09]} e6 {[%emt 0:00:15]} 8. Bd3 {[%emt 0:00:43]} Qc7 {[%emt 0:03:00]} 9. Qe2 {[%emt 0:01:47]} Bd6 {[%emt 0:00:55]} 10. O-O {[%emt 0:04:48]} O-O {[%emt 0:01:17]} 11. Ne4 {[%emt 0:02:49]} b6 {[%emt 0:15:35]} 12. Bg5 {[%emt 0:10:44]} Bb7 {[%emt 0:01:40]} 13. dxc5 {[%emt 0:10:12]} Bxc5 {[%emt 0:04:19]} 14. Rad1 {[%emt 0:08:01]} Rfe8 {[%emt 0:17:03]} 15. Nxf6+ {[%emt 0:05:01]} Nxf6 {[%emt 0:01:44]} 16. Ne5 {[%emt 0:02:11]} Nd5 {[%emt 0:15:52]} 17. c4 {[%emt 0:11:17]} f6 {[%emt 0:06:33]} 18. cxd5 {[%emt 0:05:19]} Bxd5 {[%emt 0:06:13]} 19. Bb5 {[%emt 0:14:36]} Rf8 {[%emt 0:04:24]} 20. Nd7 {[%emt 0:00:39]} fxg5 {[%emt 0:00:15]} 21. Nxf8 {[%emt 0:00:58]} Rxf8 {[%emt 0:00:07]} 22. b3 {[%emt 0:03:48]} Qb7 {[%emt 0:04:53]} 23. Qg4 {[%emt 0:02:09]} Rf4 {[%emt 0:02:30]} 24. Qxg5 {[%emt 0:01:56]} Qf7 {[%emt 0:01:25]} 25. Qd8+ {[%emt 0:01:36]} Bf8 {[%emt 0:00:09]} 26. f3 {[%emt 0:02:24]} Qg6 {[%emt 0:03:29]} 27. Bd3 {[%emt 0:00:37]} Qh5 {[%emt 0:00:13]} 28. Be4 {[%emt 0:00:32]} Bxe4 {[%emt 0:01:50]} 29. fxe4 {[%emt 0:00:05]} Qc5+ {[%emt 0:00:14]} 30. Kh1 {[%emt 0:00:19]} Rxe4 {[%emt 0:00:55]} 31. Qe8 {[%emt 0:00:20]} Qe7 {[%emt 0:00:42]} 32. Rd8 {[%emt 0:00:38]} 1-0

[Event "Vienna Chess Open 2019"]
[Site "Vienna"]
[Date "2019.08.19"]
[Round "4.4"]
[White "Mütsch, Annmarie"]
[Black "Muckle, Julius"]
[Result "0-1"]
[ECO "C03"]
[WhiteElo "2368"]
[BlackElo "2368"]
[Annotator "NA"]
[PlyCount "62"]
[EventDate "2019.08.17"]
[EventType "swiss"]
[EventCountry "AUT"]
[SourceTitle "playchess.com"]
[Source "ChessBase"]
[SourceQuality "1"]
[TimeControl "40/5400+30:1800+30"]

1. e4 {[%emt 0:00:00]} e6 {[%emt 0:00:00]} 2. d4 {[%emt 0:00:00]} d5 {[%emt 0:00:00]} 3. Nd2 {[%emt 0:00:00]} h6 {[%emt 0:00:00]} 4. Ngf3 {[%emt 0:02:22]} Nf6 {[%emt 0:00:12]} 5. e5 {[%emt 0:00:51]} Nfd7 {[%emt 0:00:02]} 6. Bd3 {[%emt 0:00:43]} c5 {[%emt 0:00:01]} 7. c3 {[%emt 0:00:08]} Nc6 {[%emt 0:00:10]} 8. O-O {[%emt 0:00:36]} g5 {[%emt 0:00:07]} 9. dxc5 {[%emt 0:06:52]} Bxc5 {[%emt 0:00:38]} 10. Nb3 {[%emt 0:05:29]} Bb6 {[%emt 0:01:57]} 11. Nbd4 {[%emt 0:09:17]} Ndxe5 {[%emt 0:08:03]} 12. Nxe5 {[%emt 0:00:50]} Nxe5 {[%emt 0:00:02]} 13. f4 {[%emt 0:07:06]} Nxd3 {[%emt 0:02:08]} 14. Qxd3 {[%emt 0:00:06]} Bd7 {[%emt 0:03:21]} 15. Kh1 {[%emt 0:05:12]} Qe7 {[%emt 0:03:46]} 16. Nf3 {[%emt 0:08:55]} O-O-O {[%emt 0:09:09]} 17. a4 {[%emt 0:01:40]} Bc7 {[%emt 0:10:24]} 18. Qd4 {[%emt 0:04:24]} Bb6 {[%emt 0:14:44]} 19. Qd3 {[%emt 0:01:10]} f6 {[%emt 0:01:39]} 20. a5 {[%emt 0:01:33]} Bc7 {[%emt 0:00:11]} 21. Qd4 {[%emt 0:04:56]} a6 {[%emt 0:01:44]} 22. b3 {[%emt 0:07:20]} e5 {[%emt 0:06:52]} 23. fxe5 {[%emt 0:00:55]} fxe5 {[%emt 0:00:01]} 24. Qa7 {[%emt 0:06:49]} Bb8 {[%emt 0:01:49]} 25. Qa8 {[%emt 0:03:05]} Bc6 {[%emt 0:05:40]} 26. Ba3 {[%emt 0:00:25]} Qc7 {[%emt 0:00:26]} 27. g3 {[%emt 0:03:05]} d4 {[%emt 0:02:20]} 28. Kg1 {[%emt 0:01:12]} dxc3 {[%emt 0:02:16]} 29. Bb4 {[%emt 0:02:27]} c2 {[%emt 0:04:24]} 30. Nd2 {[%emt 0:05:29]} Rxd2 {[%emt 0:00:58]} 31. Bxd2 {[%emt 0:00:12]} Qd6 {[%emt 0:00:03]} 0-1

[Event "Vienna Chess Open 2019"]
[Site "Vienna"]
[Date "2019.08.19"]
[Round "4.5"]
[White "Stanec, Nikolaus"]
[Black "Stark, Lars"]
[Result "1-0"]
[ECO "A46"]
[WhiteElo "2483"]
[BlackElo "2362"]
[Annotator "ChessBase"]
[PlyCount "77"]
[EventDate "2019.08.17"]
[EventType "swiss"]
[EventCountry "AUT"]
[SourceTitle "playchess.com"]
[Source "ChessBase"]
[SourceQuality "1"]
[TimeControl "40/5400+30:1800+30"]

1. Nf3 {[%emt 0:00:02]} Nf6 {[%emt 0:00:00]} 2. d4 {[%emt 0:00:07]} e6 {[%emt 0:01:03]} 3. e3 {[%emt 0:00:25]} b6 {[%emt 0:01:39]} 4. Bd3 {[%emt 0:00:18]} Bb7 {[%emt 0:00:35]} 5. O-O {[%emt 0:00:07]} c5 {[%emt 0:06:27]} 6. Nbd2 {[%emt 0:01:31]} cxd4 {[%emt 0:01:50]} 7. exd4 {[%emt 0:00:05]} Be7 {[%emt 0:00:39]} 8. Re1 {[%emt 0:01:32]} d6 {[%emt 0:03:43]} 9. c4 {[%emt 0:02:29]} O-O {[%emt 0:01:02]} 10. b3 {[%emt 0:00:10]} Nbd7 {[%emt 0:00:37]} 11. Bb2 {[%emt 0:00:06]} Re8 {[%emt 0:03:51]} 12. Rc1 {[%emt 0:00:33]} Rc8 {[%emt 0:00:40]} 13. Bb1 {[%emt 0:01:45]} Bf8 {[%emt 0:03:55]} 14. a3 {[%emt 0:09:34]} g6 {[%emt 0:00:38]} 15. Bd3 {[%emt 0:00:30]} Bh6 {[%emt 0:05:03]} 16. Rb1 {[%emt 0:02:19]} Qc7 {[%emt 0:14:47]} 17. Bf1 e5 18. d5 {[%emt 0:01:34]} b5 {[%emt 0:02:21]} 19. cxb5 {[%emt 0:02:46]} Bxd5 {[%emt 0:01:10]} 20. Rc1 {[%emt 0:04:40]} Qb8 {[%emt 0:02:05]} 21. Rxc8 {[%emt 0:00:13]} Rxc8 {[%emt 0:00:30]} 22. Nc4 {[%emt 0:01:02]} Bg7 {[%emt 0:03:23]} 23. a4 {[%emt 0:02:44]} Nb6 {[%emt 0:05:15]} 24. Nfd2 {[%emt 0:03:01]} Nbd7 {[%emt 0:11:42]} 25. Na5 {[%emt 0:04:19]} Qc7 {[%emt 0:00:56]} 26. Ndc4 {[%emt 0:00:59]} Bf8 {[%emt 0:01:19]} 27. Qd2 {[%emt 0:06:32]} Ba8 {[%emt 0:01:45]} 28. Rc1 {[%emt 0:04:34]} Qd8 {[%emt 0:07:00]} 29. b4 {[%emt 0:06:20]} Ne4 {[%emt 0:05:48]} 30. Qe3 {[%emt 0:05:09]} Ndf6 {[%emt 0:06:30]} 31. f3 {[%emt 0:08:24]} d5 {[%emt 0:00:05]} 32. Nxe5 {[%emt 0:00:14]} Rxc1 {[%emt 0:00:17]} 33. Bxc1 {[%emt 0:00:10]} Qc7 {[%emt 0:05:46]} 34. Bb2 Qc2 35. Bd4 Qd1 36. fxe4 dxe4 37. Nac6 Bd6 38. Qe2 Qb1 39. Qc4 1-0

[Event "Vienna Chess Open 2019"]
[Site "Vienna"]
[Date "2019.08.19"]
[Round "4.5"]
[White "Sandhöfner, Florian"]
[Black "Ankit, R. Rajpara"]
[Result "1/2-1/2"]
[ECO "A46"]
[WhiteElo "2454"]
[BlackElo "2454"]
[Annotator "ChessBase"]
[PlyCount "52"]
[EventDate "2019.08.17"]
[EventType "swiss"]
[EventCountry "AUT"]
[SourceTitle "playchess.com"]
[Source "ChessBase"]
[SourceQuality "1"]
[TimeControl "40/5400+30:1800+30"]

1. d4 {[%emt 0:00:00]} Nf6 {[%emt 0:00:00]} 2. Nf3 {[%emt 0:00:00]} e6 {[%emt 0:00:20]} 3. Bf4 {[%emt 0:00:00]} d5 {[%emt 0:00:42]} 4. e3 {[%emt 0:00:27]} Bd6 {[%emt 0:00:20]} 5. c3 {[%emt 0:02:38]} O-O {[%emt 0:00:31]} 6. Nbd2 {[%emt 0:00:41]} b6 {[%emt 0:00:23]} 7. Ne5 {[%emt 0:03:34]} c5 {[%emt 0:01:13]} 8. Be2 {[%emt 0:03:40]} Ba6 {[%emt 0:05:56]} 9. O-O {[%emt 0:01:16]} Bxe2 {[%emt 0:01:29]} 10. Qxe2 {[%emt 0:00:03]} Qc7 {[%emt 0:01:03]} 11. Bg3 {[%emt 0:04:37]} Nc6 {[%emt 0:15:46]} 12. Nxc6 {[%emt 0:03:40]} Qxc6 {[%emt 0:00:47]} 13. Bxd6 {[%emt 0:01:49]} Qxd6 {[%emt 0:00:06]} 14. Rfd1 {[%emt 0:01:07]} cxd4 {[%emt 0:09:01]} 15. cxd4 {[%emt 0:05:59]} Rfc8 {[%emt 0:08:26]} 16. Rdc1 {[%emt 0:03:11]} Rc7 {[%emt 0:01:45]} 17. Nb3 {[%emt 0:06:01]} Rac8 {[%emt 0:01:11]} 18. Rxc7 {[%emt 0:03:04]} Rxc7 {[%emt 0:02:39]} 19. Rc1 {[%emt 0:02:39]} Rxc1+ {[%emt 0:00:51]} 20. Nxc1 {[%emt 0:00:38]} Qc7 {[%emt 0:03:16]} 21. Nd3 {[%emt 0:04:10]} Qc4 {[%emt 0:06:41]} 22. b3 {[%emt 0:03:03]} Qc3 {[%emt 0:00:21]} 23. f3 {[%emt 0:01:06]} Ne8 {[%emt 0:01:50]} 24. Kf2 {[%emt 0:01:56]} Nd6 {[%emt 0:00:44]} 25. Ne1 {[%emt 0:01:39]} Kf8 {[%emt 0:05:21]} 26. Qc2 {[%emt 0:05:21]} Qxc2+ {[%emt 0:02:24]} 1/2-1/2

[Event "Vienna Chess Open 2019"]
[Site "Vienna"]
[Date "2019.08.19"]
[Round "4.6"]
[White "Youssoupov, Moisse"]
[Black "Buhmann, Rainer"]
[Result "0-1"]
[ECO "D00"]
[WhiteElo "2574"]
[BlackElo "2574"]
[Annotator "ChessBase"]
[PlyCount "34"]
[EventDate "2019.08.17"]
[EventType "swiss"]
[EventCountry "AUT"]
[SourceTitle "playchess.com"]
[Source "ChessBase"]
[SourceQuality "1"]
[TimeControl "40/5400+30:1800+30"]

1. d4 {[%emt 0:00:00]} d5 {[%emt 0:00:00]} 2. Bf4 {[%emt 0:00:00]} c5 {[%emt 0:00:00]} 3. e3 {[%emt 0:00:00]} cxd4 {[%emt 0:00:00]} 4. exd4 {[%emt 0:00:00]} Nc6 {[%emt 0:00:00]} 5. c3 {[%emt 0:00:00]} f6 {[%emt 0:00:26]} 6. Bd3 {[%emt 0:02:56]} e5 {[%emt 0:00:52]} 7. dxe5 {[%emt 0:06:42]} fxe5 {[%emt 0:02:30]} 8. Qh5+ {[%emt 0:04:28]} g6 {[%emt 0:04:02]} 9. Bxg6+ {[%emt 0:04:04]} hxg6 {[%emt 0:00:56]} 10. Qxh8 {[%emt 0:01:34]} exf4 {[%emt 0:03:52]} 11. Qxg8 {[%emt 0:01:29]} Bf5 {[%emt 0:05:44]} 12. Qh7 {[%emt 0:07:03]} Ne5 {[%emt 0:14:40]} 13. Qxb7 {[%emt 0:20:10]} Rb8 {[%emt 0:02:26]} 14. Qxa7 {[%emt 0:04:08]} Bc5 {[%emt 0:17:20]} 15. Qg7 {[%emt 0:04:17]} Nd3+ {[%emt 0:01:44]} 16. Ke2 {[%emt 0:13:55]} Qh4 {[%emt 0:07:07]} 17. Nh3 {[%emt 0:03:09]} Qg4+ {[%emt 0:01:24]} 0-1

[Event "Vienna Chess Open 2019"]
[Site "Vienna"]
[Date "2019.08.19"]
[Round "4.6"]
[White "Buckels, Valentin"]
[Black "Chittka, Julius"]
[Result "1-0"]
[ECO "A04"]
[WhiteElo "2453"]
[BlackElo "2453"]
[Annotator "ChessBase"]
[PlyCount "81"]
[EventDate "2019.08.17"]
[EventType "swiss"]
[EventCountry "AUT"]
[SourceTitle "playchess.com"]
[Source "ChessBase"]
[SourceQuality "1"]
[TimeControl "40/5400+30:1800+30"]

1. Nf3 {[%emt 0:00:00]} c5 {[%emt 0:04:24]} 2. b3 {[%emt 0:00:07]} Nf6 {[%emt 0:03:27]} 3. c4 {[%emt 0:00:54]} g6 {[%emt 0:04:08]} 4. Bb2 {[%emt 0:00:18]} Bg7 {[%emt 0:00:29]} 5. g3 {[%emt 0:00:24]} b6 {[%emt 0:00:47]} 6. Bg2 {[%emt 0:00:52]} Bb7 {[%emt 0:00:15]} 7. O-O {[%emt 0:02:08]} O-O {[%emt 0:00:15]} 8. d4 {[%emt 0:01:53]} d5 {[%emt 0:12:30]} 9. dxc5 {[%emt 0:05:58]} dxc4 {[%emt 0:00:32]} 10. Qxd8 {[%emt 0:05:02]} Rxd8 {[%emt 0:01:27]} 11. cxb6 {[%emt 0:02:08]} axb6 {[%emt 0:01:46]} 12. bxc4 {[%emt 0:00:57]} Na6 {[%emt 0:04:53]} 13. Nbd2 {[%emt 0:11:01]} Nc5 {[%emt 0:12:48]} 14. Nb3 {[%emt 0:11:28]} Ra4 {[%emt 0:03:12]} 15. Rfc1 {[%emt 0:07:31]} Rda8 {[%emt 0:04:57]} 16. Nxc5 {[%emt 0:02:20]} bxc5 {[%emt 0:00:39]} 17. a3 {[%emt 0:00:34]} Ne8 {[%emt 0:05:02]} 18. Bxg7 {[%emt 0:03:55]} Kxg7 {[%emt 0:00:16]} 19. Rc3 {[%emt 0:01:02]} Nd6 {[%emt 0:10:33]} 20. Nd2 {[%emt 0:00:39]} Bxg2 {[%emt 0:00:26]} 21. Kxg2 {[%emt 0:00:06]} Rb8 {[%emt 0:01:26]} 22. Ra2 {[%emt 0:00:53]} Kf6 {[%emt 0:02:35]} 23. f4 {[%emt 0:03:32]} e5 {[%emt 0:01:14]} 24. Rac2 {[%emt 0:04:13]} exf4 {[%emt 0:05:42]} 25. gxf4 {[%emt 0:01:06]} Re8 {[%emt 0:00:32]} 26. Kf3 {[%emt 0:06:42]} Nf5 {[%emt 0:01:44]} 27. Ne4+ {[%emt 0:02:49]} Kg7 {[%emt 0:00:11]} 28. Nxc5 {[%emt 0:02:39]} Ra5 {[%emt 0:01:30]} 29. Nb7 {[%emt 0:05:23]} Ra7 {[%emt 0:01:15]} 30. Rb2 {[%emt 0:00:30]} Rb8 {[%emt 0:02:51]} 31. e4 {[%emt 0:01:11]} Nd6 {[%emt 0:00:45]} 32. Nxd6 {[%emt 0:00:17]} Rxb2 {[%emt 0:00:09]} 33. c5 {[%emt 0:00:22]} Kf8 {[%emt 0:05:10]} 34. a4 {[%emt 0:01:58]} Rc7 {[%emt 0:03:16]} 35. Nb5 {[%emt 0:00:30]} Rc6 {[%emt 0:00:36]} 36. Nd4 {[%emt 0:01:55]} Rc8 {[%emt 0:00:12]} 37. Rc4 {[%emt 0:04:33]} Ke7 {[%emt 0:01:31]} 38. c6 {[%emt 0:00:35]} Rb6 {[%emt 0:02:58]} 39. c7 {[%emt 0:01:34]} Kd7 {[%emt 0:00:21]} 40. Nb5 {[%emt 0:00:15]} Ra8 {[%emt 0:01:16]} 41. Na7 {[%emt 0:31:48]} 1-0

[Event "Vienna Chess Open 2019"]
[Site "Vienna"]
[Date "2019.08.19"]
[Round "4.6"]
[White "Pfreundt, Jakob"]
[Black "Yankelevich, Lev"]
[Result "1/2-1/2"]
[ECO "C50"]
[WhiteElo "2410"]
[BlackElo "2480"]
[Annotator "ChessBase"]
[PlyCount "60"]
[EventDate "2019.08.17"]
[EventType "swiss"]
[EventCountry "AUT"]
[SourceTitle "playchess.com"]
[Source "ChessBase"]
[SourceQuality "1"]
[TimeControl "40/5400+30:1800+30"]

1. e4 {[%emt 0:00:00]} Nc6 {[%emt 0:00:02]} 2. Nf3 {[%emt 0:01:25]} e5 {[%emt 0:00:03]} 3. Bc4 {[%emt 0:00:44]} Nf6 {[%emt 0:00:07]} 4. d3 {[%emt 0:00:10]} Bc5 {[%emt 0:00:23]} 5. O-O {[%emt 0:01:14]} d6 {[%emt 0:00:33]} 6. c3 {[%emt 0:00:50]} a6 {[%emt 0:00:02]} 7. a4 {[%emt 0:02:33]} Ba7 {[%emt 0:00:10]} 8. Nbd2 {[%emt 0:05:02]} O-O {[%emt 0:00:08]} 9. h3 {[%emt 0:03:06]} Ne7 {[%emt 0:00:02]} 10. Re1 {[%emt 0:03:34]} c6 {[%emt 0:00:01]} 11. Bb3 {[%emt 0:02:19]} Ng6 {[%emt 0:02:21]} 12. Nf1 {[%emt 0:02:34]} d5 {[%emt 0:07:23]} 13. Ng3 {[%emt 0:16:07]} dxe4 {[%emt 0:03:02]} 14. dxe4 {[%emt 0:02:30]} Qxd1 {[%emt 0:00:04]} 15. Rxd1 {[%emt 0:00:24]} h6 {[%emt 0:00:06]} 16. a5 {[%emt 0:08:24]} Re8 {[%emt 0:02:30]} 17. Be3 {[%emt 0:05:06]} Bxe3 {[%emt 0:00:11]} 18. fxe3 {[%emt 0:00:06]} Be6 {[%emt 0:07:51]} 19. Bxe6 {[%emt 0:00:12]} Rxe6 {[%emt 0:00:12]} 20. Rd3 {[%emt 0:00:44]} Nf8 {[%emt 0:09:24]} 21. Rad1 {[%emt 0:02:15]} g6 {[%emt 0:03:53]} 22. Nd2 {[%emt 0:07:55]} Re7 {[%emt 0:04:56]} 23. Nc4 {[%emt 0:08:48]} Ne6 {[%emt 0:02:59]} 24. Nxe5 {[%emt 0:02:42]} Nc5 {[%emt 0:03:11]} 25. Rd8+ {[%emt 0:00:05]} Rxd8 {[%emt 0:00:04]} 26. Rxd8+ {[%emt 0:00:04]} Kg7 {[%emt 0:00:05]} 27. Nc4 {[%emt 0:00:24]} Nfxe4 {[%emt 0:04:12]} 28. Nxe4 {[%emt 0:00:08]} Rxe4 {[%emt 0:00:30]} 29. Nd6 {[%emt 0:05:10]} Rxe3 {[%emt 0:01:26]} 30. Ne8+ {[%emt 0:00:46]} Kf8 {[%emt 0:01:11]} 1/2-1/2

[Event "Vienna Chess Open 2019"]
[Site "Vienna"]
[Date "2019.08.19"]
[Round "4.7"]
[White "Bakhmatsky, Vladislav"]
[Black "Herman, Diego"]
[Result "1-0"]
[ECO "B07"]
[WhiteElo "2442"]
[BlackElo "2185"]
[Annotator "NA"]
[PlyCount "69"]
[EventDate "2019.08.17"]
[EventType "swiss"]
[EventCountry "AUT"]
[SourceTitle "playchess.com"]
[Source "ChessBase"]
[SourceQuality "1"]
[TimeControl "40/5400+30:1800+30"]

1. e4 {[%emt 0:00:00]} d6 {[%emt 0:00:00]} 2. d4 {[%emt 0:00:00]} Nf6 {[%emt 0:00:00]} 3. Nc3 {[%emt 0:00:00]} e5 {[%emt 0:00:14]} 4. Nf3 {[%emt 0:00:11]} exd4 {[%emt 0:00:09]} 5. Nxd4 {[%emt 0:00:01]} Be7 {[%emt 0:00:12]} 6. g3 {[%emt 0:02:46]} O-O {[%emt 0:00:45]} 7. Bg2 {[%emt 0:00:14]} Nc6 {[%emt 0:07:03]} 8. Nf5 {[%emt 0:00:44]} d5 {[%emt 0:12:18]} 9. Nxd5 {[%emt 0:49:57]} Nxd5 {[%emt 0:18:30]} 10. Qxd5 {[%emt 0:00:18]} Bxf5 {[%emt 0:05:12]} 11. exf5 {[%emt 0:00:01]} Nd4 {[%emt 0:02:16]} 12. Qc4 {[%emt 0:06:31]} Bb4+ {[%emt 0:08:36]} 13. Kf1 {[%emt 0:00:02]} Nb3 {[%emt 0:10:58]} 14. Bg5 {[%emt 0:00:04]} Nd2+ {[%emt 0:03:22]} 15. Bxd2 {[%emt 0:00:02]} Qxd2 {[%emt 0:00:10]} 16. Bxb7 {[%emt 0:07:36]} Rad8 {[%emt 0:01:46]} 17. Bf3 {[%emt 0:01:32]} Rd4 {[%emt 0:05:36]} 18. Qxc7 {[%emt 0:02:01]} Rd7 {[%emt 0:01:34]} 19. Qc4 {[%emt 0:06:33]} Rd4 {[%emt 0:02:04]} 20. Qb3 {[%emt 0:00:30]} Bc5 {[%emt 0:00:58]} 21. Rd1 {[%emt 0:00:30]} Qg5 {[%emt 0:00:22]} 22. Rxd4 {[%emt 0:05:57]} Bxd4 {[%emt 0:00:04]} 23. Kg2 {[%emt 0:00:41]} Qxf5 {[%emt 0:02:29]} 24. Rd1 {[%emt 0:00:23]} Qf6 {[%emt 0:01:07]} 25. c3 {[%emt 0:01:08]} Bb6 {[%emt 0:00:06]} 26. Qb5 {[%emt 0:02:38]} g6 {[%emt 0:05:01]} 27. a4 {[%emt 0:01:03]} Rd8 {[%emt 0:00:27]} 28. a5 {[%emt 0:00:58]} Bc7 {[%emt 0:00:43]} 29. Rxd8+ {[%emt 0:03:29]} Qxd8 {[%emt 0:00:04]} 30. b4 {[%emt 0:01:17]} Bd6 {[%emt 0:02:11]} 31. c4 {[%emt 0:01:37]} Qc7 {[%emt 0:00:50]} 32. c5 {[%emt 0:01:43]} Be7 {[%emt 0:01:35]} 33. Qe8+ {[%emt 0:01:37]} Kg7 {[%emt 0:00:26]} 34. Bd5 {[%emt 0:00:05]} Bd8 {[%emt 0:00:28]} 35. b5 {[%emt 0:01:38]} 1-0

[Event "Vienna Chess Open 2019"]
[Site "Vienna"]
[Date "2019.08.19"]
[Round "4.8"]
[White "Kaasen, Tor Fredrik"]
[Black "Markoja, Boris"]
[Result "1/2-1/2"]
[ECO "C11"]
[WhiteElo "2373"]
[BlackElo "2440"]
[Annotator "NA"]
[PlyCount "54"]
[EventDate "2019.08.17"]
[EventType "swiss"]
[EventCountry "AUT"]
[SourceTitle "playchess.com"]
[Source "ChessBase"]
[SourceQuality "1"]
[TimeControl "40/5400+30:1800+30"]

1. e4 {[%emt 0:00:00]} e6 {[%emt 0:00:00]} 2. d4 {[%emt 0:01:56]} d5 {[%emt 0:00:00]} 3. Nc3 {[%emt 0:00:10]} Nf6 {[%emt 0:00:00]} 4. e5 {[%emt 0:00:39]} Nfd7 {[%emt 0:00:02]} 5. f4 {[%emt 0:00:08]} c5 {[%emt 0:00:08]} 6. Nf3 {[%emt 0:00:06]} Nc6 {[%emt 0:00:09]} 7. Be3 {[%emt 0:00:06]} Be7 {[%emt 0:00:33]} 8. Qd2 {[%emt 0:01:29]} O-O {[%emt 0:00:38]} 9. dxc5 {[%emt 0:00:59]} Qa5 {[%emt 0:00:57]} 10. Bd3 {[%emt 0:04:03]} Nxc5 {[%emt 0:07:10]} 11. O-O {[%emt 0:02:30]} Nxd3 {[%emt 0:11:53]} 12. cxd3 {[%emt 0:01:00]} f6 {[%emt 0:00:39]} 13. exf6 {[%emt 0:05:22]} Bxf6 {[%emt 0:00:40]} 14. d4 {[%emt 0:02:49]} Bd7 {[%emt 0:01:15]} 15. a3 {[%emt 0:04:02]} Be8 {[%emt 0:11:53]} 16. Ng5 {[%emt 0:10:48]} Bxg5 {[%emt 0:03:32]} 17. b4 {[%emt 0:01:55]} Qc7 {[%emt 0:04:56]} 18. fxg5 {[%emt 0:00:19]} Bg6 {[%emt 0:00:41]} 19. Rac1 {[%emt 0:02:53]} Qd7 {[%emt 0:01:26]} 20. Bf4 {[%emt 0:05:20]} Rac8 {[%emt 0:01:37]} 21. Nb5 {[%emt 0:06:33]} Na5 {[%emt 0:14:28]} 22. Rxc8 {[%emt 0:12:32]} Rxc8 {[%emt 0:00:07]} 23. bxa5 {[%emt 0:01:11]} Qxb5 24. Bd6 Bd3 25. Qe3 Qd7 26. Qxd3 Qxd6 27. Qf3 Qe7 1/2-1/2

[Event "Vienna Chess Open 2019"]
[Site "Vienna"]
[Date "2019.08.19"]
[Round "4.9"]
[White "Akesson, Ralf"]
[Black "Gilevych, Artem"]
[Result "0-1"]
[ECO "E04"]
[WhiteElo "2348"]
[BlackElo "2424"]
[Annotator "NA"]
[PlyCount "70"]
[EventDate "2019.08.17"]
[EventType "swiss"]
[EventCountry "AUT"]
[SourceTitle "playchess.com"]
[Source "ChessBase"]
[SourceQuality "1"]
[TimeControl "40/5400+30:1800+30"]

1. c4 {[%emt 0:04:23]} e6 {[%emt 0:00:00]} 2. d4 {[%emt 0:00:58]} d5 {[%emt 0:00:00]} 3. Nf3 {[%emt 0:00:23]} Nf6 {[%emt 0:00:02]} 4. g3 {[%emt 0:00:22]} dxc4 {[%emt 0:01:18]} 5. Bg2 {[%emt 0:00:17]} Nc6 {[%emt 0:00:11]} 6. Qa4 {[%emt 0:01:21]} Bb4+ {[%emt 0:00:47]} 7. Bd2 {[%emt 0:00:17]} Nd5 {[%emt 0:01:22]} 8. Bxb4 {[%emt 0:00:43]} Ndxb4 {[%emt 0:01:44]} 9. a3 {[%emt 0:04:16]} b5 {[%emt 0:05:24]} 10. Qxb5 {[%emt 0:00:31]} Nc2+ {[%emt 0:00:07]} 11. Kd2 {[%emt 0:00:40]} Nxa1 {[%emt 0:02:43]} 12. Qxc6+ {[%emt 0:00:23]} Bd7 {[%emt 0:00:07]} 13. Qxc4 {[%emt 0:00:14]} c5 {[%emt 0:02:16]} 14. Qa2 {[%emt 0:04:33]} Rc8 {[%emt 0:01:23]} 15. Qxa1 {[%emt 0:03:13]} O-O {[%emt 0:06:12]} 16. Rc1 {[%emt 0:08:10]} cxd4 {[%emt 0:02:59]} 17. Rxc8 {[%emt 0:01:52]} Bxc8 {[%emt 0:00:06]} 18. Ke1 {[%emt 0:06:09]} Bb7 {[%emt 0:15:14]} 19. Nbd2 {[%emt 0:02:10]} Qc7 {[%emt 0:01:37]} 20. Kf1 {[%emt 0:17:08]} Rc8 {[%emt 0:09:59]} 21. Ne1 {[%emt 0:04:49]} Ba6 {[%emt 0:04:45]} 22. Qb1 {[%emt 0:06:42]} Qa5 {[%emt 0:05:09]} 23. Ndf3 {[%emt 0:05:07]} e5 {[%emt 0:03:34]} 24. Qf5 {[%emt 0:10:15]} Rc1 {[%emt 0:09:43]} 25. Qe4 {[%emt 0:07:42]} g6 {[%emt 0:02:39]} 26. b4 {[%emt 0:06:24]} Qc7 {[%emt 0:01:17]} 27. Qd5 {[%emt 0:01:41]} Kf8 {[%emt 0:11:52]} 28. b5 {[%emt 0:02:08]} Bb7 {[%emt 0:00:11]} 29. Qb3 {[%emt 0:00:09]} Qc3 {[%emt 0:01:22]} 30. Qb4+ {[%emt 0:00:51]} Kg7 {[%emt 0:01:54]} 31. Qd6 {[%emt 0:01:01]} d3 {[%emt 0:02:30]} 32. Qxd3 {[%emt 0:00:20]} Bxf3 {[%emt 0:00:06]} 33. Qxc3 {[%emt 0:00:42]} Bxg2+ {[%emt 0:00:06]} 34. Kxg2 {[%emt 0:00:04]} Rxc3 {[%emt 0:00:02]} 35. Nd3 {[%emt 0:00:57]} e4 {[%emt 0:00:33]} 0-1